[Event "Titled Tuesday Blitz May 16 Late 2023"]
[White "OPQRC"]
[Black "Rangel, Daniel"]
[BlackFideId "2124475"]
[WhiteElo "2554"]
[BlackElo "2256"]
[Result "1-0"]
[Round "09"]
[TimeControl "180+2"]
[Date "2023.05.16"]
[WhiteClock "0:00:09"]
[BlackClock "0:00:04"]

1. e4 {[%clk 0:02:59]}  c5 {[%clk 0:02:26]} 2. Nf3 {[%clk 0:02:58]}  g6 {[%clk 0:02:26]} 3. c4 {[%clk 0:02:58]}  Bg7 {[%clk 0:02:24]} 4. d4 {[%clk 0:02:58]}  cxd4 {[%clk 0:02:24]} 5. Nxd4 {[%clk 0:02:59]}  Nc6 {[%clk 0:02:25]} 6. Be3 {[%clk 0:02:59]}  Nf6 {[%clk 0:02:19]} 7. Nc3 {[%clk 0:02:59]}  O-O {[%clk 0:02:18]} 8. Be2 {[%clk 0:02:59]}  Nxd4 {[%clk 0:02:18]} 9. Bxd4 {[%clk 0:02:58]}  d6 {[%clk 0:02:19]} 10. O-O {[%clk 0:02:58]}  Bd7 {[%clk 0:02:20]} 11. Qc2 {[%clk 0:02:55]}  Bc6 {[%clk 0:02:20]} 12. b4 {[%clk 0:02:48]}  b6 {[%clk 0:02:13]} 13. a4 {[%clk 0:02:46]}  a5 {[%clk 0:02:09]} 14. b5 {[%clk 0:02:39]}  Bb7 {[%clk 0:02:07]} 15. Rac1 {[%clk 0:02:33]}  Nd7 {[%clk 0:01:59]} 16. Bxg7 {[%clk 0:02:28]}  Kxg7 {[%clk 0:01:51]} 17. f4 {[%clk 0:02:28]}  Rc8 {[%clk 0:01:48]} 18. Kh1 {[%clk 0:02:25]}  Nc5 {[%clk 0:01:46]} 19. f5 {[%clk 0:02:23]}  Nd7 {[%clk 0:01:44]} 20. Qd2 {[%clk 0:02:07]}  f6 {[%clk 0:01:33]} 21. Rf3 {[%clk 0:01:46]}  Ne5 {[%clk 0:01:32]} 22. Rh3 {[%clk 0:01:46]}  g5 {[%clk 0:01:31]} 23. Rh5 {[%clk 0:01:39]}  Nxc4 {[%clk 0:01:18]} 24. Bxc4 {[%clk 0:01:39]}  Rxc4 {[%clk 0:01:18]} 25. h4 {[%clk 0:01:39]}  h6 {[%clk 0:01:07]} 26. hxg5 {[%clk 0:01:22]}  hxg5 {[%clk 0:01:05]} 27. Rxg5+ {[%clk 0:01:23]}  Kf7 {[%clk 0:01:05]} 28. Rh5 {[%clk 0:00:53]}  Rh8 {[%clk 0:01:02]} 29. Qe2 {[%clk 0:00:45]}  Rc5 {[%clk 0:00:44]} 30. Kg1 {[%clk 0:00:30]}  Qc8 {[%clk 0:00:37]} 31. Qg4 {[%clk 0:00:27]}  Rxh5 {[%clk 0:00:28]} 32. Qxh5+ {[%clk 0:00:25]}  Kf8 {[%clk 0:00:29]} 33. Qh8+ {[%clk 0:00:20]}  Kf7 {[%clk 0:00:29]} 34. Qh5+ {[%clk 0:00:21]}  Kf8 {[%clk 0:00:28]} 35. Qh6+ {[%clk 0:00:08]}  Ke8 {[%clk 0:00:24]} 36. Qh5+ {[%clk 0:00:08]}  Kd7 {[%clk 0:00:24]} 37. Qf3 {[%clk 0:00:08]}  Kc7 {[%clk 0:00:17]} 38. Nd5+ {[%clk 0:00:07]}  Bxd5 {[%clk 0:00:16]} 39. Rxc5+ {[%clk 0:00:08]}  dxc5 {[%clk 0:00:16]} 40. exd5 {[%clk 0:00:08]}  Qd8 {[%clk 0:00:14]} 41. Qe4 {[%clk 0:00:08]}  Qd6 {[%clk 0:00:14]} 42. Kf2 {[%clk 0:00:05]}  Kd7 {[%clk 0:00:14]} 43. g4 {[%clk 0:00:05]}  Qe5 {[%clk 0:00:13]} 44. Qxe5 {[%clk 0:00:04]}  fxe5 {[%clk 0:00:14]} 45. g5 {[%clk 0:00:05]}  c4 {[%clk 0:00:10]} 46. g6 {[%clk 0:00:04]}  Ke8 {[%clk 0:00:10]} 47. f6 {[%clk 0:00:04]}  exf6 {[%clk 0:00:02]} 48. d6 {[%clk 0:00:04]}  c3 {[%clk 0:00:01]} 49. g7 {[%clk 0:00:04]}  Kf7 {[%clk 0:00:01]} 50. d7 {[%clk 0:00:04]}  c2 {[%clk 0:00:02]} 51. g8=Q+ {[%clk 0:00:04]}  Kxg8 {[%clk 0:00:02]} 52. d8=Q+ {[%clk 0:00:03]}  Kg7 {[%clk 0:00:03]} 53. Qc7+ {[%clk 0:00:04]}  Kg6 {[%clk 0:00:03]} 54. Qxc2+ {[%clk 0:00:04]}  f5 {[%clk 0:00:03]} 55. Qc6+ {[%clk 0:00:05]}  Kg5 {[%clk 0:00:04]} 56. Qxb6 {[%clk 0:00:06]}  e4 {[%clk 0:00:05]} 57. Qe3+ {[%clk 0:00:06]}  Kg4 {[%clk 0:00:04]} 58. Qg3+ {[%clk 0:00:05]}  Kh5 {[%clk 0:00:05]} 59. Qf4 {[%clk 0:00:06]}  Kg6 {[%clk 0:00:05]} 60. Ke3 {[%clk 0:00:06]}  Kf6 {[%clk 0:00:06]} 61. b6 {[%clk 0:00:07]}  Ke6 {[%clk 0:00:07]} 62. b7 {[%clk 0:00:08]}  Kd5 {[%clk 0:00:08]} 63. Qxf5+ {[%clk 0:00:08]}  Kc4 {[%clk 0:00:04]} 64. Qxe4+ {[%clk 0:00:09]} 1-0


[Site "https://www.chess.com"]

[Event "Titled Tuesday Blitz May 16 Late 2023"]
[White "Erzhanov, Arman"]
[Black "Gutkin, Ilya"]
[WhiteFideId "4138821"]
[BlackFideId "16203470"]
[WhiteElo "2138"]
[BlackElo "2265"]
[Result "1-0"]
[Round "09"]
[TimeControl "180+2"]
[Date "2023.05.16"]
[WhiteClock "0:00:54"]
[BlackClock "0:00:43"]

1. e4 {[%clk 0:02:47]}  e6 {[%clk 0:02:59]} 2. b3 {[%clk 0:02:46]}  d5 {[%clk 0:02:59]} 3. Bb2 {[%clk 0:02:46]}  dxe4 {[%clk 0:03:00]} 4. Nc3 {[%clk 0:02:47]}  Nf6 {[%clk 0:03:00]} 5. Qe2 {[%clk 0:02:47]}  Bb4 {[%clk 0:03:00]} 6. O-O-O {[%clk 0:02:45]}  Qe7 {[%clk 0:02:59]} 7. Kb1 {[%clk 0:02:45]}  Ba3 {[%clk 0:02:58]} 8. Ba1 {[%clk 0:02:45]}  O-O {[%clk 0:02:56]} 9. Nxe4 {[%clk 0:02:45]}  Nxe4 {[%clk 0:02:56]} 10. Qxe4 {[%clk 0:02:46]}  a5 {[%clk 0:02:56]} 11. Nf3 {[%clk 0:02:41]}  a4 {[%clk 0:02:56]} 12. Bd3 {[%clk 0:02:27]}  f5 {[%clk 0:02:51]} 13. Qh4 {[%clk 0:02:26]}  Qxh4 {[%clk 0:02:50]} 14. Nxh4 {[%clk 0:02:25]}  Nc6 {[%clk 0:02:48]} 15. Rhe1 {[%clk 0:02:23]}  axb3 {[%clk 0:02:42]} 16. axb3 {[%clk 0:02:21]}  Bc5 {[%clk 0:02:42]} 17. Re2 {[%clk 0:02:14]}  Bd7 {[%clk 0:02:36]} 18. Bc4 {[%clk 0:02:11]}  Bd4 {[%clk 0:02:28]} 19. Bc3 {[%clk 0:02:04]}  Kf7 {[%clk 0:02:10]} 20. Nxf5 {[%clk 0:02:00]}  Bf6 {[%clk 0:02:03]} 21. Rde1 {[%clk 0:01:54]}  Rfe8 {[%clk 0:02:01]} 22. Ng3 {[%clk 0:01:36]}  Na5 {[%clk 0:01:47]} 23. Bd3 {[%clk 0:01:35]}  c5 {[%clk 0:01:38]} 24. Ne4 {[%clk 0:01:24]}  Red8 {[%clk 0:01:29]} 25. Nxc5 {[%clk 0:01:18]}  Bc6 {[%clk 0:01:28]} 26. Nxe6 {[%clk 0:01:15]}  Rxd3 {[%clk 0:01:27]} 27. cxd3 {[%clk 0:01:15]}  Nxb3 {[%clk 0:01:27]} 28. Kb2 {[%clk 0:01:11]}  Bd5 {[%clk 0:01:21]} 29. Nc7 {[%clk 0:01:10]}  Nc5 {[%clk 0:00:53]} 30. Nxa8 {[%clk 0:00:54]}  Nxd3+ {[%clk 0:00:43]} 31. Kc2 {[%clk 0:00:54]} 1-0


[Site "https://www.chess.com"]

[Event "Titled Tuesday Blitz May 16 Late 2023"]
[White "Buchenau, Frank"]
[Black "Estrada Nieto, Julian"]
[WhiteFideId "4604350"]
[BlackFideId "5101018"]
[WhiteElo "2157"]
[BlackElo "2161"]
[Result "1-0"]
[Round "09"]
[TimeControl "180+2"]
[Date "2023.05.16"]
[WhiteClock "0:00:13"]
[BlackClock "0:00:09"]

1. e4 {[%clk 0:03:00]}  e5 {[%clk 0:02:59]} 2. Bc4 {[%clk 0:03:00]}  Nc6 {[%clk 0:02:59]} 3. Nf3 {[%clk 0:02:59]}  Bc5 {[%clk 0:02:54]} 4. c3 {[%clk 0:02:58]}  Nf6 {[%clk 0:02:53]} 5. d3 {[%clk 0:02:58]}  d6 {[%clk 0:02:53]} 6. O-O {[%clk 0:02:58]}  a6 {[%clk 0:02:51]} 7. Bb3 {[%clk 0:02:58]}  Ba7 {[%clk 0:02:50]} 8. Nbd2 {[%clk 0:02:57]}  O-O {[%clk 0:02:49]} 9. h3 {[%clk 0:02:56]}  h6 {[%clk 0:02:47]} 10. Re1 {[%clk 0:02:56]}  Re8 {[%clk 0:02:47]} 11. Nf1 {[%clk 0:02:53]}  Be6 {[%clk 0:02:47]} 12. Bxe6 {[%clk 0:02:50]}  Rxe6 {[%clk 0:02:47]} 13. Be3 {[%clk 0:02:50]}  d5 {[%clk 0:02:45]} 14. Bxa7 {[%clk 0:02:48]}  Rxa7 {[%clk 0:02:45]} 15. exd5 {[%clk 0:02:42]}  Nxd5 {[%clk 0:02:40]} 16. d4 {[%clk 0:02:39]}  e4 {[%clk 0:02:29]} 17. N3d2 {[%clk 0:02:32]}  Nf6 {[%clk 0:02:28]} 18. Ng3 {[%clk 0:02:26]}  Qe8 {[%clk 0:02:21]} 19. Re3 {[%clk 0:01:41]}  Ra8 {[%clk 0:02:00]} 20. Qe2 {[%clk 0:01:39]}  Nd5 {[%clk 0:01:47]} 21. Rxe4 {[%clk 0:01:38]}  Rxe4 {[%clk 0:01:46]} 22. Qxe4 {[%clk 0:01:36]}  Qxe4 {[%clk 0:01:44]} 23. Ndxe4 {[%clk 0:01:24]}  Nf4 {[%clk 0:01:43]} 24. Re1 {[%clk 0:01:16]}  b6 {[%clk 0:01:41]} 25. Nf5 {[%clk 0:01:04]}  Kf8 {[%clk 0:01:40]} 26. Re3 {[%clk 0:00:39]}  Re8 {[%clk 0:01:37]} 27. h4 {[%clk 0:00:28]}  Na5 {[%clk 0:01:35]} 28. Nd2 {[%clk 0:00:22]}  Rxe3 {[%clk 0:01:10]} 29. fxe3 {[%clk 0:00:21]}  Nd3 {[%clk 0:01:11]} 30. b4 {[%clk 0:00:20]}  Nb7 {[%clk 0:01:06]} 31. Kf1 {[%clk 0:00:19]}  h5 {[%clk 0:01:03]} 32. a3 {[%clk 0:00:19]}  g6 {[%clk 0:01:01]} 33. Ng3 {[%clk 0:00:19]}  Nd6 {[%clk 0:00:58]} 34. Ke2 {[%clk 0:00:19]}  Nb2 {[%clk 0:00:55]} 35. e4 {[%clk 0:00:18]}  Ndc4 {[%clk 0:00:53]} 36. Nxc4 {[%clk 0:00:17]}  Nxc4 {[%clk 0:00:53]} 37. a4 {[%clk 0:00:18]}  a5 {[%clk 0:00:52]} 38. bxa5 {[%clk 0:00:17]}  bxa5 {[%clk 0:00:53]} 39. e5 {[%clk 0:00:16]}  Nb2 {[%clk 0:00:52]} 40. Ne4 {[%clk 0:00:16]}  Nxa4 {[%clk 0:00:51]} 41. Kd3 {[%clk 0:00:16]}  Ke7 {[%clk 0:00:50]} 42. c4 {[%clk 0:00:16]}  Nb2+ {[%clk 0:00:47]} 43. Kc3 {[%clk 0:00:16]}  Nd1+ {[%clk 0:00:46]} 44. Kb3 {[%clk 0:00:16]}  Ne3 {[%clk 0:00:46]} 45. g3 {[%clk 0:00:16]}  a4+ {[%clk 0:00:45]} 46. Kxa4 {[%clk 0:00:15]}  Nxc4 {[%clk 0:00:45]} 47. Kb4 {[%clk 0:00:16]}  Ne3 {[%clk 0:00:45]} 48. Kc5 {[%clk 0:00:16]}  Ke6 {[%clk 0:00:40]} 49. Ng5+ {[%clk 0:00:15]}  Ke7 {[%clk 0:00:38]} 50. Kc6 {[%clk 0:00:15]}  Nf5 {[%clk 0:00:38]} 51. d5 {[%clk 0:00:14]}  Nxg3 {[%clk 0:00:30]} 52. Kxc7 {[%clk 0:00:14]}  Nf5 {[%clk 0:00:15]} 53. d6+ {[%clk 0:00:14]}  Nxd6 {[%clk 0:00:11]} 54. exd6+ {[%clk 0:00:14]}  Kf6 {[%clk 0:00:12]} 55. d7 {[%clk 0:00:14]}  Kf5 {[%clk 0:00:13]} 56. d8=Q {[%clk 0:00:14]}  Kg4 {[%clk 0:00:14]} 57. Qf6 {[%clk 0:00:14]}  Kxh4 {[%clk 0:00:14]} 58. Nxf7+ {[%clk 0:00:14]}  Kg3 {[%clk 0:00:13]} 59. Qxg6+ {[%clk 0:00:14]}  Kh4 {[%clk 0:00:13]} 60. Ne5 {[%clk 0:00:13]}  Kh3 {[%clk 0:00:13]} 61. Qxh5+ {[%clk 0:00:13]}  Kg3 {[%clk 0:00:13]} 62. Qg4+ {[%clk 0:00:13]}  Kf2 {[%clk 0:00:13]} 63. Qh3 {[%clk 0:00:13]}  Ke2 {[%clk 0:00:13]} 64. Kd6 {[%clk 0:00:13]}  Kd2 {[%clk 0:00:13]} 65. Kd5 {[%clk 0:00:14]}  Ke2 {[%clk 0:00:13]} 66. Kd4 {[%clk 0:00:14]}  Kf2 {[%clk 0:00:13]} 67. Ke4 {[%clk 0:00:13]}  Ke2 {[%clk 0:00:14]} 68. Qg2+ {[%clk 0:00:13]}  Ke1 {[%clk 0:00:09]} 69. Kd3 {[%clk 0:00:13]} 1-0


[Site "https://www.chess.com"]

[Event "Titled Tuesday Blitz May 16 Late 2023"]
[White "Stork, Oliver"]
[Black "Bryant, Todd"]
[WhiteFideId "12955728"]
[BlackFideId "2031299"]
[WhiteElo "2239"]
[BlackElo "2372"]
[Result "0-1"]
[Round "09"]
[TimeControl "180+2"]
[Date "2023.05.16"]
[WhiteClock "0:00:30"]
[BlackClock "0:00:20"]

1. e4 {[%clk 0:03:00]}  c5 {[%clk 0:03:00]} 2. Nc3 {[%clk 0:02:59]}  d6 {[%clk 0:03:00]} 3. g3 {[%clk 0:02:58]}  Nc6 {[%clk 0:02:58]} 4. Bg2 {[%clk 0:02:57]}  g6 {[%clk 0:02:58]} 5. d3 {[%clk 0:02:57]}  Bg7 {[%clk 0:02:59]} 6. Be3 {[%clk 0:02:56]}  Rb8 {[%clk 0:02:59]} 7. Qd2 {[%clk 0:02:56]}  b5 {[%clk 0:02:59]} 8. f4 {[%clk 0:02:53]}  b4 {[%clk 0:02:58]} 9. Nd1 {[%clk 0:02:53]}  Nf6 {[%clk 0:02:56]} 10. Nf3 {[%clk 0:02:47]}  O-O {[%clk 0:02:51]} 11. O-O {[%clk 0:02:47]}  Ng4 {[%clk 0:02:51]} 12. c3 {[%clk 0:02:40]}  Nxe3 {[%clk 0:02:50]} 13. Nxe3 {[%clk 0:02:41]}  bxc3 {[%clk 0:02:44]} 14. bxc3 {[%clk 0:02:42]}  Qa5 {[%clk 0:02:44]} 15. Rfc1 {[%clk 0:02:41]}  Ba6 {[%clk 0:02:39]} 16. Rc2 {[%clk 0:02:20]}  Rb7 {[%clk 0:02:36]} 17. Ne1 {[%clk 0:02:14]}  Rfb8 {[%clk 0:02:32]} 18. Rac1 {[%clk 0:02:12]}  Qa3 {[%clk 0:02:28]} 19. e5 {[%clk 0:02:09]}  Rb6 {[%clk 0:02:20]} 20. Nd5 {[%clk 0:02:06]}  Rb2 {[%clk 0:01:59]} 21. Nc7 {[%clk 0:01:59]}  Rxc2 {[%clk 0:01:53]} 22. Rxc2 {[%clk 0:01:45]}  Qa4 {[%clk 0:01:27]} 23. e6 {[%clk 0:01:30]}  fxe6 {[%clk 0:01:13]} 24. Nxe6 {[%clk 0:01:28]}  Bf6 {[%clk 0:01:07]} 25. Bd5 {[%clk 0:01:27]}  Kh8 {[%clk 0:01:07]} 26. Rb2 {[%clk 0:01:23]}  Rxb2 {[%clk 0:01:05]} 27. Qxb2 {[%clk 0:01:24]}  Qd1 {[%clk 0:01:02]} 28. Kf2 {[%clk 0:01:14]}  Nb4 {[%clk 0:00:50]} 29. d4 {[%clk 0:00:49]}  cxd4 {[%clk 0:00:33]} 30. cxb4 {[%clk 0:00:43]}  d3 {[%clk 0:00:34]} 31. Nd4 {[%clk 0:00:36]}  d2 {[%clk 0:00:26]} 32. Nef3 {[%clk 0:00:34]}  Qf1+ {[%clk 0:00:20]} 33. Ke3 {[%clk 0:00:35]}  d1=Q {[%clk 0:00:20]} 34. Qc3 {[%clk 0:00:30]}  Qdd3+ {[%clk 0:00:20]} 0-1


[Site "https://www.chess.com"]

[Event "Titled Tuesday Blitz May 16 Late 2023"]
[White "marik_spb"]
[Black "lluiss"]
[WhiteElo "2445"]
[BlackElo "2294"]
[Result "0-1"]
[Round "09"]
[TimeControl "180+2"]
[Date "2023.05.16"]
[WhiteClock "0:00:11"]
[BlackClock "0:00:08"]

1. d4 {[%clk 0:03:00]}  Nf6 {[%clk 0:02:59]} 2. c4 {[%clk 0:02:59]}  g6 {[%clk 0:02:58]} 3. Nf3 {[%clk 0:02:59]}  Bg7 {[%clk 0:02:58]} 4. Nc3 {[%clk 0:02:58]}  d5 {[%clk 0:02:58]} 5. Bg5 {[%clk 0:02:57]}  Ne4 {[%clk 0:02:57]} 6. Bf4 {[%clk 0:02:57]}  Nxc3 {[%clk 0:02:56]} 7. bxc3 {[%clk 0:02:56]}  c5 {[%clk 0:02:56]} 8. e3 {[%clk 0:02:56]}  O-O {[%clk 0:02:56]} 9. cxd5 {[%clk 0:02:56]}  cxd4 {[%clk 0:02:55]} 10. cxd4 {[%clk 0:02:56]}  Qxd5 {[%clk 0:02:55]} 11. Be2 {[%clk 0:02:57]}  Qa5+ {[%clk 0:02:55]} 12. Qd2 {[%clk 0:02:57]}  Nc6 {[%clk 0:02:55]} 13. Qxa5 {[%clk 0:02:56]}  Nxa5 {[%clk 0:02:54]} 14. O-O {[%clk 0:02:57]}  Be6 {[%clk 0:02:51]} 15. Ne5 {[%clk 0:02:41]}  Rfc8 {[%clk 0:02:41]} 16. Bf3 {[%clk 0:02:29]}  Rc2 {[%clk 0:02:19]} 17. Nd3 {[%clk 0:02:25]}  Rac8 {[%clk 0:01:45]} 18. h4 {[%clk 0:02:17]}  b6 {[%clk 0:01:38]} 19. Nb4 {[%clk 0:01:46]}  Rb2 {[%clk 0:01:31]} 20. Nd5 {[%clk 0:01:39]}  Kf8 {[%clk 0:01:22]} 21. Rac1 {[%clk 0:01:34]}  Rbc2 {[%clk 0:01:19]} 22. Rxc2 {[%clk 0:01:33]}  Rxc2 {[%clk 0:01:19]} 23. a3 {[%clk 0:01:24]}  Nc4 {[%clk 0:01:16]} 24. Nc7 {[%clk 0:01:10]}  Bd7 {[%clk 0:00:59]} 25. Be4 {[%clk 0:01:06]}  Rc3 {[%clk 0:00:55]} 26. h5 {[%clk 0:00:34]}  Nd2 {[%clk 0:00:55]} 27. Nd5 {[%clk 0:00:31]}  Rxa3 {[%clk 0:00:50]} 28. Rc1 {[%clk 0:00:20]}  Nxe4 {[%clk 0:00:45]} 29. Rc7 {[%clk 0:00:21]}  Ke8 {[%clk 0:00:22]} 30. Rb7 {[%clk 0:00:20]}  Be6 {[%clk 0:00:20]} 31. Nc7+ {[%clk 0:00:18]}  Kd8 {[%clk 0:00:18]} 32. Nb5 {[%clk 0:00:11]}  Ra1+ {[%clk 0:00:18]} 33. Kh2 {[%clk 0:00:11]}  Nd6 {[%clk 0:00:15]} 34. Bxd6 {[%clk 0:00:10]}  exd6 {[%clk 0:00:14]} 35. Nxa7 {[%clk 0:00:10]}  Ra2 {[%clk 0:00:09]} 36. Nc6+ {[%clk 0:00:09]}  Kc8 {[%clk 0:00:09]} 37. Re7 {[%clk 0:00:07]}  Bf6 {[%clk 0:00:08]} 38. d5 {[%clk 0:00:03]}  Bxe7 {[%clk 0:00:06]} 39. Nxe7+ {[%clk 0:00:04]}  Kd7 {[%clk 0:00:06]} 40. Ng8 {[%clk 0:00:03]}  Bxd5 {[%clk 0:00:06]} 41. Nf6+ {[%clk 0:00:04]}  Ke6 {[%clk 0:00:05]} 42. Nxh7 {[%clk 0:00:04]}  gxh5 {[%clk 0:00:05]} 43. Kg3 {[%clk 0:00:03]}  h4+ {[%clk 0:00:05]} 44. Kxh4 {[%clk 0:00:03]}  Rxf2 {[%clk 0:00:05]} 45. g4 {[%clk 0:00:04]}  Rh2+ {[%clk 0:00:05]} 46. Kg5 {[%clk 0:00:03]}  Rxh7 {[%clk 0:00:06]} 47. e4 {[%clk 0:00:04]}  Rg7+ {[%clk 0:00:06]} 48. Kf4 {[%clk 0:00:04]}  Bxe4 {[%clk 0:00:07]} 49. Kg3 {[%clk 0:00:04]}  Rxg4+ {[%clk 0:00:07]} 50. Kxg4 {[%clk 0:00:04]}  b5 {[%clk 0:00:08]} 51. Kf4 {[%clk 0:00:05]}  b4 {[%clk 0:00:09]} 52. Ke3 {[%clk 0:00:06]}  b3 {[%clk 0:00:09]} 53. Kxe4 {[%clk 0:00:07]}  b2 {[%clk 0:00:09]} 54. Kd4 {[%clk 0:00:07]}  b1=Q {[%clk 0:00:09]} 55. Ke3 {[%clk 0:00:08]}  f6 {[%clk 0:00:10]} 56. Kf2 {[%clk 0:00:09]}  f5 {[%clk 0:00:10]} 57. Kf3 {[%clk 0:00:10]}  Qe4+ {[%clk 0:00:09]} 58. Kf2 {[%clk 0:00:09]}  d5 {[%clk 0:00:09]} 59. Kg3 {[%clk 0:00:10]}  d4 {[%clk 0:00:09]} 60. Kf2 {[%clk 0:00:11]}  d3 {[%clk 0:00:08]} 0-1


[Site "https://www.chess.com"]

[Event "Titled Tuesday Blitz May 16 Late 2023"]
[White "Harish, Neeraj"]
[Black "Kovalevsky, Stanislav"]
[WhiteFideId "30958130"]
[BlackFideId "13508598"]
[WhiteElo "1879"]
[BlackElo "2174"]
[Result "1-0"]
[Round "09"]
[TimeControl "180+2"]
[Date "2023.05.16"]
[WhiteClock "0:00:11"]
[BlackClock "0:00:09"]

1. e4 {[%clk 0:03:00]}  e6 {[%clk 0:02:58]} 2. d4 {[%clk 0:03:00]}  d5 {[%clk 0:02:58]} 3. e5 {[%clk 0:02:51]}  c5 {[%clk 0:02:56]} 4. c3 {[%clk 0:02:51]}  Nc6 {[%clk 0:02:56]} 5. Nf3 {[%clk 0:02:51]}  cxd4 {[%clk 0:02:55]} 6. cxd4 {[%clk 0:02:51]}  f6 {[%clk 0:02:56]} 7. exf6 {[%clk 0:02:41]}  Nxf6 {[%clk 0:02:57]} 8. Nc3 {[%clk 0:02:40]}  Bd6 {[%clk 0:02:53]} 9. Bd3 {[%clk 0:02:36]}  O-O {[%clk 0:02:51]} 10. O-O {[%clk 0:02:35]}  e5 {[%clk 0:02:52]} 11. dxe5 {[%clk 0:02:31]}  Nxe5 {[%clk 0:02:53]} 12. Nxe5 {[%clk 0:02:32]}  Bxe5 {[%clk 0:02:53]} 13. h3 {[%clk 0:02:01]}  Kh8 {[%clk 0:02:25]} 14. Ne2 {[%clk 0:01:59]}  Nh5 {[%clk 0:02:14]} 15. f4 {[%clk 0:01:48]}  Bd6 {[%clk 0:02:01]} 16. Be3 {[%clk 0:01:44]}  Be6 {[%clk 0:01:50]} 17. Kh1 {[%clk 0:01:19]}  Qd7 {[%clk 0:01:06]} 18. Qe1 {[%clk 0:01:13]}  Bxh3 {[%clk 0:00:59]} 19. Qh4 {[%clk 0:01:12]}  Bg4 {[%clk 0:00:57]} 20. Ng3 {[%clk 0:00:42]}  Nxg3+ {[%clk 0:00:56]} 21. Qxg3 {[%clk 0:00:43]}  Rf6 {[%clk 0:00:23]} 22. Bd4 {[%clk 0:00:23]}  Rh6+ {[%clk 0:00:23]} 23. Kg1 {[%clk 0:00:23]}  b6 {[%clk 0:00:24]} 24. Rac1 {[%clk 0:00:19]}  Rc8 {[%clk 0:00:15]} 25. Qe3 {[%clk 0:00:15]}  Rc2 {[%clk 0:00:10]} 26. Rxc2 {[%clk 0:00:15]}  Rg6 {[%clk 0:00:09]} 27. Bxg6 {[%clk 0:00:14]}  hxg6 {[%clk 0:00:10]} 28. Qg3 {[%clk 0:00:14]}  Bf5 {[%clk 0:00:11]} 29. Re2 {[%clk 0:00:13]}  Bd3 {[%clk 0:00:10]} 30. Qxd3 {[%clk 0:00:13]}  Qa4 {[%clk 0:00:09]} 31. Qh3+ {[%clk 0:00:11]}  Kg8 {[%clk 0:00:09]} 32. Qc8+ {[%clk 0:00:11]}  Kh7 {[%clk 0:00:08]} 33. Bc3 {[%clk 0:00:11]}  Bc5+ {[%clk 0:00:08]} 34. Kh1 {[%clk 0:00:10]}  Qc4 {[%clk 0:00:08]} 35. Qh3+ {[%clk 0:00:10]}  Kg8 {[%clk 0:00:08]} 36. Re8+ {[%clk 0:00:11]}  Kf7 {[%clk 0:00:09]} 37. Qe6# {[%clk 0:00:11]} 1-0


[Site "https://www.chess.com"]

[Event "Titled Tuesday Blitz May 16 Late 2023"]
[White "Janaszak, Dawid"]
[Black "Goswami, Vedant"]
[WhiteFideId "1119206"]
[BlackFideId "5003725"]
[WhiteElo "2220"]
[BlackElo "2011"]
[Result "0-1"]
[Round "09"]
[TimeControl "180+2"]
[Date "2023.05.16"]
[WhiteClock "0:01:07"]
[BlackClock "0:00:01"]

1. d4 {[%clk 0:03:00]}  Nf6 {[%clk 0:02:57]} 2. Bg5 {[%clk 0:03:00]}  h6 {[%clk 0:02:51]} 3. Bxf6 {[%clk 0:02:57]}  exf6 {[%clk 0:02:51]} 4. e4 {[%clk 0:02:58]}  d6 {[%clk 0:02:46]} 5. Nc3 {[%clk 0:02:58]}  g6 {[%clk 0:02:45]} 6. Qd2 {[%clk 0:02:56]}  Bg7 {[%clk 0:02:45]} 7. O-O-O {[%clk 0:02:56]}  a6 {[%clk 0:02:40]} 8. f4 {[%clk 0:02:55]}  Nc6 {[%clk 0:02:28]} 9. Nf3 {[%clk 0:02:55]}  Bg4 {[%clk 0:02:24]} 10. h3 {[%clk 0:02:55]}  Bxf3 {[%clk 0:02:23]} 11. gxf3 {[%clk 0:02:56]}  h5 {[%clk 0:02:18]} 12. Kb1 {[%clk 0:02:54]}  Bh6 {[%clk 0:02:17]} 13. d5 {[%clk 0:02:52]}  Ne5 {[%clk 0:02:11]} 14. Qh2 {[%clk 0:02:38]}  Nd7 {[%clk 0:02:08]} 15. e5 {[%clk 0:02:30]}  fxe5 {[%clk 0:02:03]} 16. fxe5 {[%clk 0:02:31]}  Nxe5 {[%clk 0:01:56]} 17. f4 {[%clk 0:02:31]}  Nd7 {[%clk 0:01:52]} 18. Re1+ {[%clk 0:02:31]}  Kf8 {[%clk 0:01:52]} 19. Ne4 {[%clk 0:02:23]}  Kg7 {[%clk 0:01:46]} 20. f5 {[%clk 0:02:16]}  Ne5 {[%clk 0:01:26]} 21. Bg2 {[%clk 0:02:05]}  Qh4 {[%clk 0:01:24]} 22. Rhf1 {[%clk 0:02:02]}  Rae8 {[%clk 0:01:12]} 23. fxg6 {[%clk 0:02:00]}  fxg6 {[%clk 0:01:12]} 24. Rd1 {[%clk 0:01:48]}  Rhf8 {[%clk 0:01:09]} 25. Qg1 {[%clk 0:01:48]}  Kh7 {[%clk 0:00:35]} 26. a3 {[%clk 0:01:47]}  Bg7 {[%clk 0:00:32]} 27. Qe3 {[%clk 0:01:45]}  Kh8 {[%clk 0:00:26]} 28. Qb3 {[%clk 0:01:44]}  b5 {[%clk 0:00:23]} 29. c3 {[%clk 0:01:31]}  Nc4 {[%clk 0:00:23]} 30. Qc2 {[%clk 0:01:32]}  Rxf1 {[%clk 0:00:20]} 31. Rxf1 {[%clk 0:01:30]}  Rxe4 {[%clk 0:00:18]} 32. Bxe4 {[%clk 0:01:25]}  Qxe4 {[%clk 0:00:17]} 33. Qxe4 {[%clk 0:01:22]}  Nd2+ {[%clk 0:00:17]} 34. Kc2 {[%clk 0:01:22]}  Nxe4 {[%clk 0:00:17]} 35. Rf7 {[%clk 0:01:23]}  Ng5 {[%clk 0:00:14]} 36. Rxc7 {[%clk 0:01:22]}  Nxh3 {[%clk 0:00:15]} 37. Rc6 {[%clk 0:01:22]}  Be5 {[%clk 0:00:12]} 38. Rxa6 {[%clk 0:01:22]}  Nf4 {[%clk 0:00:11]} 39. c4 {[%clk 0:01:21]}  bxc4 {[%clk 0:00:10]} 40. a4 {[%clk 0:01:21]}  h4 {[%clk 0:00:10]} 41. Ra8+ {[%clk 0:01:18]}  Kg7 {[%clk 0:00:10]} 42. Ra7+ {[%clk 0:01:19]}  Kh6 {[%clk 0:00:09]} 43. a5 {[%clk 0:01:14]}  h3 {[%clk 0:00:09]} 44. a6 {[%clk 0:01:14]}  h2 {[%clk 0:00:09]} 45. Rb7 {[%clk 0:01:15]}  h1=Q {[%clk 0:00:08]} 46. a7 {[%clk 0:01:14]}  Qg2+ {[%clk 0:00:07]} 47. Kb1 {[%clk 0:01:15]}  Qf1+ {[%clk 0:00:06]} 48. Ka2 {[%clk 0:01:15]}  c3 {[%clk 0:00:03]} 49. a8=Q {[%clk 0:01:15]}  cxb2 {[%clk 0:00:02]} 50. Qa4 {[%clk 0:01:07]}  Qa1+ {[%clk 0:00:01]} 51. Kb3 {[%clk 0:01:06]}  b1=Q+ {[%clk 0:00:01]} 52. Kc4 {[%clk 0:01:07]}  Qc3# {[%clk 0:00:01]} 0-1


[Site "https://www.chess.com"]